bitfinex-derivatives/quotes_ETHF0:USTF0_20241207
["timestamp","ask_amount","ask_price","bid_price","bid_amount"]
[1733596566101,0.17476,4001.5,4001.3,0.61647]
[1733596566802,1.31426589,4001.6,4001.5,0.17476]
[1733596567107,1.48902589,4001.6,4001.5,0.17476]
[1733596567499,1.31426589,4001.6,4001.5,0.17476]
[1733596567904,0.4152,4001.6,4001.5,0.17476]
[1733596570502,0.17475,4001.8,4001.3,0.4417]
[1733596570704,1.95301589,4001.9,4001.7,0.17475]
[1733596571107,1.95301589,4001.9,4001.3,0.4417]
[1733596571303,3.91693711,4001.8,4001.7,0.17475]
[1733596573914,1.33396589,4001.9,4001.8,0.17475]
[1733596573915,4.35183711,4001.9,4001.8,0.17475]
[1733596574212,0.4349,4001.9,4001.8,0.17475]
[1733596574612,2.93788856,4001.9,4001.8,0.89906589]
[1733596574802,2.93788856,4002.0,4001.8,0.89906589]
[1733596575102,2.93788856,4002.0,4001.9,0.58895]
[1733596575909,2.93788856,4002.1,4001.9,0.4142]
[1733596576111,2.93788856,4002.1,4002.0,0.17474]
[1733596576310,2.93679181,4002.1,4002.0,0.17474]
[1733596577710,2.93679181,4002.1,4001.9,0.58894]
[1733596577910,2.93679181,4002.0,4001.9,0.58894]
[1733596579310,2.93679181,4002.0,4001.5,4.71757484]
[1733596579311,3.2078,4002.0,4001.5,3.2078]
[1733596579507,0.17476,4001.6,4001.5,3.2078]
[1733596579712,0.17476,4001.6,4001.5,3.38256]
[1733596579920,0.58876,4001.6,4001.5,3.38256]
[1733596580215,0.414,4001.6,4001.5,3.38256]
[1733596580410,0.60195,4001.9,4001.8,0.17475]
[1733596580612,1.01595,4001.9,4001.8,0.17475]
[1733596580808,0.414,4001.9,4001.8,0.17475]
[1733596586415,0.4137,4002.3,4001.7,0.416]
[1733596586612,1.00213,4002.3,4002.1,0.17473]
[1733596587120,1.00213,4002.3,4001.6,1.77526589]
[1733596587121,1.00213,4002.3,4002.2,0.4119]
[1733596588019,0.8274,4002.3,4002.2,0.58663]
[1733596588320,0.4137,4002.3,4002.2,0.58663]
[1733596588709,3.2078,4002.6,4002.2,0.4119]
[1733596588916,3.2078,4002.6,4002.5,0.17472]
[1733596591917,0.4062,4002.7,4002.6,0.17472]
[1733596592305,0.4062,4002.7,4002.5,0.643]
[1733596592306,1.32856589,4003.3,4002.5,1.54206589]
[1733596592512,0.1747,4003.0,4002.8,0.17471]
[1733596593211,0.1747,4003.0,4002.5,1.54206589]
[1733596593212,0.1747,4003.0,4002.7,0.17471]
[1733596593518,0.1747,4003.0,4002.8,0.17471]
[1733596594517,3.91693711,4002.9,4002.5,1.54206589]
[1733596594716,2.93755625,4002.6,4002.5,1.71678589]
[1733596595615,2.93769726,4002.6,4002.5,1.71678589]
[1733596596011,2.93769726,4002.6,4002.5,0.643]
[1733596596213,3.91693711,4002.7,4002.5,0.643]
[1733596596410,4.09164711,4002.7,4002.5,0.81772]
[1733596596817,3.91693711,4002.7,4002.6,0.17472]
[1733596597713,4.09164711,4002.8,4002.6,0.17472]
[1733596597917,3.91693711,4002.7,4002.6,0.17472]
[1733596598215,4.09164711,4002.8,4002.6,0.17472]
[1733596598717,3.91693711,4002.7,4002.5,0.643]
[1733596598914,0.57942,4002.6,4002.5,0.643]
[1733596599511,0.57942,4002.6,4002.3,0.17473]
[1733596599512,0.17472,4002.4,4002.3,0.17473]
[1733596599712,3.11268131,4002.4,4002.3,0.17473]
[1733596600315,2.93796131,4002.4,4002.3,0.17473]
[1733596601219,2.93796131,4002.4,4002.3,0.58983]
[1733596601715,9.00807344,4003.0,4002.3,0.4151]
[1733596601716,3.2078,4003.0,4002.3,0.4151]
[1733596601918,0.6181,4003.1,4002.9,0.1747]
[1733596602824,0.1747,4003.0,4002.8,0.1747]
[1733596603122,3.77966131,4003.4,4002.7,0.4418]
[1733596603314,0.17469,4003.2,4003.0,0.17469]
[1733596603516,3.77966131,4003.4,4003.0,0.17469]
[1733596603817,0.17469,4003.3,4002.9,0.89906589]
[1733596604024,0.17469,4003.3,4003.1,0.17469]
[1733596605819,0.17469,4003.3,4003.2,0.4436]
[1733596606214,0.1747,4002.9,4002.8,0.8177]
[1733596606424,0.1747,4003.0,4002.9,0.1747]
[1733596606724,0.1747,4003.1,4003.0,0.1747]
[1733596606925,0.1747,4003.0,4002.9,0.1747]
[1733596607122,0.1747,4003.1,4003.0,0.1747]
[1733596608324,0.1747,4003.1,4002.6,3.2078]
[1733596608325,0.17471,4002.7,4002.6,3.2078]
[1733596608526,0.17471,4002.7,4002.6,3.38251]
[1733596609331,0.17471,4002.7,4002.6,3.2078]
[1733596609524,4.09164711,4002.7,4002.6,3.2078]
[1733596609718,4.09164711,4002.7,4002.6,3.38252]
[1733596610227,0.17471,4002.7,4002.6,3.38252]
[1733596610931,0.17471,4002.7,4002.6,0.17472]
[1733596611320,5.93001755,4002.8,4002.7,0.17471]
[1733596611516,0.4375,4002.8,4002.7,0.17471]
[1733596612026,4.90120755,4002.9,4002.8,0.17471]
[1733596612238,4.90120755,4002.9,4002.8,1.07377589]
[1733596614328,3.92080675,4002.9,4002.8,1.07377589]
[1733596614522,3.92080675,4002.9,4002.8,0.89906589]
[1733596614723,3.92080675,4003.0,4002.9,0.1747]
[1733596615019,3.92080675,4003.0,4002.9,2.12366589]
[1733596616723,3.2078,4003.2,4003.1,0.17469]
[1733596617918,0.4331,4003.5,4003.4,0.17468]
[1733596621620,2.94062431,4003.9,4003.3,0.89906589]
[1733596621820,0.8452,4004.0,4003.3,0.89906589]
[1733596621821,3.96598431,4004.0,4003.7,0.17466]
[1733596622124,0.17466,4003.9,4003.8,0.4242]
[1733596622430,3.79132431,4004.0,4003.8,0.4242]
[1733596622624,0.8507,4004.0,4003.9,0.17466]
[1733596622929,0.8507,4004.0,4003.8,0.4242]
[1733596622930,1.02535,4004.0,4003.8,0.59886]
[1733596623128,0.8507,4004.0,4003.8,0.4242]
[1733596623324,1.02536,4004.0,4003.8,0.59886]
[1733596623625,2.94062431,4003.9,4003.8,0.59886]
[1733596624631,2.94062431,4004.2,4004.0,0.17465]
[1733596624824,2.94062431,4004.2,4003.9,0.89906589]
[1733596625031,3.11526431,4004.3,4004.1,0.17465]
[1733596625233,2.94062431,4004.3,4004.2,0.17465]
[1733596625532,0.57864,4004.4,4003.9,0.89906589]
[1733596625533,0.404,4004.4,4003.9,0.89906589]
[1733596625827,0.404,4004.4,4004.3,0.17464]
[1733596626228,0.404,4004.4,4004.3,0.59534]
[1733596626628,0.404,4004.4,4004.3,0.4207]
[1733596626830,0.57864,4004.4,4004.3,0.4207]
[1733596627429,3.96066431,4004.4,4004.3,0.4207]
[1733596627621,1.02004,4004.4,4004.3,0.4207]
[1733596628723,1.02004,4004.4,4004.3,0.59534]
[1733596628724,0.8454,4004.4,4004.3,0.59534]
[1733596629030,0.404,4004.4,4004.3,0.59534]
[1733596629239,0.404,4004.4,4004.3,0.4207]
[1733596629435,0.57864,4004.4,4004.3,0.4207]
[1733596630038,0.57864,4004.4,4004.3,0.59534]
[1733596631531,0.404,4004.4,4004.3,0.59534]
[1733596631725,0.404,4004.4,4004.3,0.17464]
[1733596631726,4.90120755,4004.4,4004.3,0.17464]
[1733596631933,4.90120755,4004.4,4004.2,0.81373029]
[1733596632234,0.17464,4004.3,4004.2,0.98837029]
[1733596632435,5.07584755,4004.3,4004.2,0.98837029]
[1733596632631,0.59314,4004.3,4004.2,0.98837029]
[1733596633140,0.59314,4004.3,4004.2,0.81373029]
[1733596633343,0.59314,4004.3,4004.2,0.98838029]
[1733596633834,0.59314,4004.3,4004.2,0.81373029]
[1733596634840,0.59314,4004.3,4004.2,1.45573029]
[1733596635039,0.59314,4004.3,4004.2,1.63038029]
[1733596635240,0.59314,4004.3,4004.2,0.642]
[1733596635737,0.59314,4004.3,4004.2,0.81665]
[1733596637339,0.59314,4004.3,4004.2,1.71571589]
[1733596637644,4.08656312,4004.3,4004.2,1.71571589]
[1733596638643,0.17464,4004.3,4004.2,1.54106589]
[1733596639841,0.17464,4004.3,4004.2,1.71571589]
[1733596640541,0.4055,4004.5,4004.2,1.54106589]
[1733596640744,0.17464,4004.4,4004.3,0.17464]
[1733596640942,0.17464,4004.4,4004.3,0.61114]
[1733596642249,0.17464,4004.4,4004.3,0.4365]
[1733596643847,0.17464,4004.4,4004.3,0.61114]
[1733596645054,0.17464,4004.4,4004.3,0.4365]
[1733596646348,0.17464,4004.4,4004.3,0.61114]
[1733596646847,4.08656312,4004.4,4004.3,0.61114]
[1733596648053,4.08656312,4004.4,4004.3,0.4365]
[1733596649554,0.17464,4004.4,4004.3,0.4365]
[1733596649848,8.52710755,4004.6,4004.2,1.54106589]
[1733596649849,4.90120755,4004.5,4004.2,1.54106589]
[1733596650149,0.59694,4004.3,4004.2,1.54106589]
[1733596650353,0.59694,4004.3,4004.2,0.89906589]
[1733596650550,0.4223,4004.3,4004.1,0.642]
[1733596650742,0.17465,4004.2,4004.1,0.642]
[1733596651049,4.08748604,4004.2,4004.1,0.642]
[1733596651457,0.17465,4004.2,4004.1,0.642]
[1733596651655,4.08780915,4004.2,4004.1,0.642]
[1733596652047,3.91315915,4004.2,4003.9,1.47641589]
[1733596652360,0.17465,4004.0,4003.9,1.47641589]
[1733596652550,0.17465,4004.0,4003.9,2.11841589]
[1733596653049,0.17465,4004.0,4003.9,1.94376589]
[1733596653255,0.17465,4004.0,4003.9,1.30176589]
[1733596653457,0.17465,4004.0,4003.9,1.94376589]
[1733596661768,5.07585755,4004.0,4003.9,1.94376589]
[1733596662270,0.17465,4004.0,4003.9,1.94376589]
[1733596663169,0.17465,4004.1,4004.0,0.17465]
[1733596663771,0.17465,4004.0,4003.9,2.11842589]
[1733596663973,5.08030581,4004.0,4003.9,2.11842589]
[1733596664275,0.17465,4004.0,4003.9,2.11842589]
[1733596664569,0.17465,4004.1,4004.0,0.17465]
[1733596664771,0.17465,4004.1,4004.0,1.07371589]
[1733596664974,0.17464,4004.3,4004.0,0.89906589]
[1733596665180,0.17464,4004.3,4004.2,1.07370589]
[1733596665369,6.05920464,4004.4,4004.3,0.17464]
[1733596667576,0.17464,4004.4,4004.3,0.17464]
[1733596668676,5.8912313,4004.4,4004.3,0.17464]
[1733596668986,2.94573008,4004.5,4004.3,3.2078]
[1733596669283,2.94573008,4004.7,4004.4,6.66858803]
[1733596669486,2.94573008,4004.7,4004.6,1.07369589]
[1733596669674,4.10250716,4004.9,4004.7,0.17462]
[1733596669878,3.92788716,4004.9,4004.8,0.17462]
[1733596670078,4.10249716,4005.0,4004.6,4.80397183]
[1733596670282,3.92788716,4005.1,4005.0,0.17461]
[1733596670682,3.92788716,4005.1,4005.0,0.57571]
[1733596671579,4.10248716,4005.2,4005.0,0.57571]
[1733596671779,4.10249716,4005.1,4005.0,0.57571]
[1733596672086,4.10249716,4005.1,4005.0,1.47477589]
[1733596672588,0.17461,4005.1,4005.0,1.47477589]
[1733596673394,4.10248716,4005.2,4005.0,1.47477589]
[1733596674489,0.1746,4005.2,4005.0,1.47477589]
[1733596674787,3.92788716,4005.3,4005.0,1.30016589]
[1733596675087,0.17461,4005.1,4005.0,1.47477589]
[1733596675288,0.17461,4005.1,4005.0,1.30016589]
[1733596675983,3.11782795,4005.1,4005.0,1.30016589]
[1733596676784,2.94321795,4005.1,4004.6,7.11270594]
[1733596677092,0.17462,4004.8,4004.7,0.81662]
[1733596677289,3.11783795,4004.8,4004.7,0.81662]
[1733596677482,0.58052,4004.8,4004.7,0.81662]
[1733596678487,0.58052,4004.8,4004.7,0.642]
[1733596678690,0.58052,4004.8,4004.7,1.71568589]
[1733596679393,0.58052,4004.8,4004.7,1.54106589]
[1733596680590,0.58052,4004.8,4004.7,1.71568589]
[1733596680794,0.58052,4004.8,4004.7,1.54106589]
[1733596683987,4.50840716,4004.8,4004.7,1.54106589]
[1733596685696,0.4059,4004.8,4004.6,0.4304]
[1733596685900,0.4059,4004.8,4004.1,0.98975]
[1733596685901,0.17465,4004.2,4004.1,0.98975]
[1733596686096,3.11685536,4004.3,4004.1,2.53081589]
[1733596686294,2.94221536,4004.2,4004.1,2.53081589]
[1733596686988,3.11685536,4004.3,4004.2,0.17465]
[1733596687187,0.17464,4004.3,4004.2,0.17465]
[1733596688000,4.09759381,4004.4,4004.1,2.35616589]
[1733596688200,3.92295381,4004.4,4004.3,0.17464]
[1733596688396,4.09758381,4004.5,4004.3,0.17464]
[1733596688601,4.09758381,4004.5,4004.4,0.89906589]
[1733596689203,0.17463,4004.5,4004.4,0.89906589]
[1733596690605,4.09774418,4004.5,4004.4,0.89906589]
[1733596691010,4.09769484,4004.5,4004.4,0.89906589]
[1733596691701,0.17463,4004.5,4004.4,1.07370589]
[1733596691896,0.17463,4004.5,4004.4,0.89906589]
[1733596693015,0.17463,4004.5,4004.4,1.07370589]
[1733596694901,0.17463,4004.5,4004.4,4.97861183]
[1733596695107,0.17463,4004.5,4004.4,1.07370589]
[1733596695605,0.17463,4004.5,4004.4,0.89906589]
[1733596695801,0.17463,4004.5,4004.4,1.07370589]
[1733596696004,0.17463,4004.5,4004.4,0.89906589]
[1733596696802,0.17463,4004.5,4004.4,1.07370589]
[1733596697514,0.17463,4004.5,4004.4,0.89906589]
[1733596698205,0.17464,4004.4,4004.3,3.90490594]
[1733596698412,0.17464,4004.3,4004.2,0.89906589]
[1733596699710,0.17466,4003.9,4003.8,0.642]
[1733596699902,5.07990635,4003.9,4003.8,0.642]
[1733596700310,0.17466,4003.9,4003.8,0.642]
[1733596700904,5.07919858,4003.9,4003.8,0.642]
[1733596701314,0.17466,4003.9,4003.8,0.642]
[1733596701802,5.48189858,4003.9,4003.8,0.642]
[1733596702609,0.57736,4003.9,4003.8,0.642]
[1733596704215,0.17468,4003.4,4003.3,1.0294]
[1733596704417,3.11564894,4003.4,4003.3,1.0294]
[1733596704606,0.17468,4003.4,4003.3,1.0294]
[1733596706310,0.17468,4003.4,4003.3,4.93430594]
[1733596707108,0.17468,4003.4,4003.3,4.29230594]
[1733596707308,0.17468,4003.4,4003.3,0.3874]
[1733596708616,0.17469,4003.2,4003.1,3.90490594]
[1733596708917,0.89906589,4003.5,4002.9,0.8167]
[1733596708918,0.1747,4003.0,4002.9,0.8167]
[1733596709511,0.1747,4003.0,4002.9,0.642]
[1733596712323,0.4258,4003.6,4002.9,0.642]
[1733596712621,0.4258,4003.6,4003.4,0.89906589]
[1733596712812,0.60047,4003.6,4003.5,0.4063]
[1733596713209,0.17467,4003.6,4003.5,0.4063]
[1733596713423,0.17467,4003.6,4003.5,0.7947]
[1733596713815,3.2078,4003.8,4003.5,1.4367]
[1733596714019,3.38247,4003.8,4003.7,1.07373589]
[1733596714319,3.2078,4003.8,4003.7,1.07373589]
[1733596714509,3.2078,4004.3,4003.7,0.89906589]
[1733596714715,0.17465,4004.2,4004.1,0.89906589]
[1733596715417,0.17465,4004.2,4004.1,1.07371589]
[1733596715822,0.17465,4004.2,4004.1,0.89906589]
[1733596716217,0.17465,4004.2,4004.1,1.49001589]
[1733596716418,0.17465,4004.2,4004.1,1.31536589]
[1733596716724,3.38244,4004.3,4004.2,0.17465]
[1733596716922,3.38244,4004.3,4004.2,0.56705]
[1733596717411,3.2078,4004.3,4004.2,0.56705]
[1733596717817,0.58543,4004.7,4004.5,0.17463]
[1733596718019,0.58543,4004.7,4004.6,1.31536589]
[1733596718218,0.17462,4004.8,4004.6,1.48999589]
[1733596718415,0.17462,4004.9,4004.6,1.31536589]
[1733596718717,0.17461,4005.0,4004.8,0.17462]
[1733596718923,0.17461,4005.0,4004.9,0.89906589]
[1733596720321,0.402,4005.1,4004.9,1.07367589]
[1733596720519,0.402,4005.1,4004.9,0.89906589]
[1733596720821,0.1746,4005.2,4004.9,1.07367589]
[1733596721221,0.1746,4005.3,4005.1,0.17461]
[1733596721416,0.1746,4005.3,4005.2,0.89906589]
[1733596721922,0.17462,4004.7,4004.6,1.31536589]
[1733596722121,0.844,4005.4,4004.6,1.31536589]
[1733596722122,2.93581483,4004.8,4004.6,1.31536589]
[1733596722317,2.93581483,4004.8,4004.7,0.17462]
[1733596722723,4.31001978,4004.9,4004.6,1.31536589]
[1733596723022,2.93588345,4004.8,4004.6,0.4163]
[1733596723211,0.17462,4004.7,4004.6,1.31536589]
[1733596723414,0.17462,4004.7,4004.6,1.48999589]
[1733596723615,3.11050345,4004.8,4004.6,1.31536589]
[1733596723817,2.93588345,4004.8,4004.7,0.17462]
[1733596724423,4.31001978,4004.9,4004.6,1.31536589]
[1733596724724,2.93582733,4004.7,4004.6,1.48999589]
[1733596725111,2.93582733,4004.9,4004.6,1.31536589]
[1733596725422,2.93558671,4004.9,4004.8,0.17462]
[1733596726025,2.93558671,4005.0,4004.9,0.17461]
[1733596726228,0.17461,4005.1,4004.9,1.07367589]
[1733596726431,4.08902978,4005.1,4004.9,1.07367589]
[1733596726924,4.08902978,4005.1,4005.0,0.4151]
[1733596727124,0.17461,4005.1,4005.0,0.4151]
[1733596727723,4.08902978,4005.1,4005.0,0.4151]
[1733596728127,0.17461,4005.1,4005.0,0.4151]
[1733596728326,0.1746,4005.2,4005.0,0.58971]
[1733596728535,0.17461,4005.1,4005.0,0.58971]
[1733596728927,0.17461,4005.1,4005.0,0.4151]
[1733596729329,4.08854906,4005.1,4005.0,0.4151]
[1733596729532,0.17461,4005.1,4005.0,0.58971]
[1733596731829,0.17461,4005.2,4005.1,0.1746]
[1733596733431,0.17461,4005.1,4005.0,0.58971]
[1733596733932,0.79,4005.3,4005.1,0.1746]
[1733596733933,0.17461,4005.2,4005.1,0.1746]
[1733596734436,0.79,4005.3,4005.0,0.4151]
[1733596734645,0.17461,4005.1,4005.0,0.58971]
[1733596735441,0.17461,4005.1,4005.0,0.4151]
[1733596736535,4.08854906,4005.1,4005.0,0.58971]
[1733596739634,3.91393906,4005.1,4005.0,0.58971]
[1733596740142,3.9978,4005.3,4005.0,0.4151]
[1733596740143,3.91393906,4005.2,4005.0,0.4151]
[1733596740342,7.12173906,4005.3,4005.1,0.89906589]
[1733596740535,3.91393906,4005.3,4005.2,0.1746]
[1733596740739,3.91393906,4005.4,4005.3,0.1746]
[1733596741943,3.91393906,4005.4,4005.1,0.89906589]
[1733596741944,3.91393906,4005.6,4005.1,1.33558589]
[1733596742141,2.93376755,4005.4,4005.3,0.1746]
[1733596742340,2.93376755,4005.5,4005.4,0.17459]
[1733596742937,2.93376755,4005.5,4005.4,1.07365589]
[1733596744239,7.68011906,4005.8,4005.4,0.89906589]
[1733596744240,2.93376755,4005.6,4005.4,0.89906589]
[1733596744441,3.38238,4005.8,4005.5,0.89906589]
[1733596744746,3.38238,4005.8,4005.7,0.17458]
[1733596745640,3.2078,4005.8,4005.7,0.17458]
[1733596746040,0.3941,4005.9,4005.8,0.17458]
[1733596746343,0.3941,4005.9,4005.8,1.07364589]
[1733596746645,0.17457,4006.0,4005.8,1.07364589]
[1733596746847,0.17457,4006.0,4005.9,0.17457]
[1733596748444,0.17456,4006.1,4006.0,0.17457]
[1733596748839,0.17457,4006.0,4005.9,0.17457]
[1733596749238,0.4098,4006.2,4005.8,0.89906589]
[1733596749553,0.4098,4006.2,4005.6,1.1983]
[1733596749554,0.58436,4006.2,4006.1,0.89906589]
[1733596750243,0.58436,4006.2,4005.8,0.89906589]
[1733596750244,0.4098,4006.2,4005.8,0.89906589]
[1733596750450,0.17457,4005.9,4005.8,0.89906589]
[1733596750648,0.4098,4006.2,4005.8,0.89906589]
[1733596751144,0.17457,4006.0,4005.9,0.17457]
[1733596751944,2.93376755,4006.1,4005.8,0.89906589]
[1733596752144,0.17457,4005.9,4005.8,0.89906589]
[1733596752351,0.17457,4005.9,4005.8,1.07364589]
[1733596752746,0.17457,4005.9,4005.8,0.89906589]
[1733596753847,0.17457,4005.9,4005.8,1.07364589]
[1733596755154,3.10583057,4005.9,4005.8,1.07364589]
[1733596755352,3.10583057,4006.0,4005.9,0.17457]
[1733596755554,0.17457,4006.0,4005.9,0.17457]
[1733596756549,2.93289501,4006.0,4005.9,0.642]
[1733596756751,2.93289501,4006.1,4005.9,0.642]
[1733596757054,0.17456,4006.2,4006.1,0.17456]
[1733596757353,4.08849906,4006.2,4006.1,0.17456]
[1733596757559,3.91393906,4006.2,4006.1,0.17456]
[1733596757754,3.91172979,4006.2,4006.0,1.30316589]
[1733596757955,0.17456,4006.2,4006.1,0.17456]
[1733596758260,0.17456,4006.2,4006.0,1.47772589]
[1733596758559,3.91346407,4006.1,4006.0,1.47773589]
[1733596759252,3.91346407,4006.2,4006.0,1.30316589]
[1733596759460,3.91346407,4006.2,4006.1,0.17456]
[1733596759661,3.38236,4006.3,4006.2,0.17456]
[1733596760169,3.2078,4006.3,4006.0,1.30316589]
[1733596760460,0.17456,4006.2,4006.1,0.17456]
[1733596761156,0.17456,4006.1,4006.0,1.47772589]
[1733596761458,0.17456,4006.1,4006.0,1.30316589]
[1733596761759,0.17456,4006.1,4006.0,1.47773589]
[1733596763754,3.6092,4006.3,4006.2,0.17456]
[1733596763755,3.38236,4006.3,4006.2,0.17456]
[1733596763961,0.17456,4006.1,4006.0,1.30316589]
[1733596764755,0.17456,4006.1,4006.0,1.47773589]
[1733596765664,0.57636,4006.2,4006.1,0.17456]
[1733596765959,0.57636,4006.2,4006.0,1.30316589]
[1733596765960,3.38236,4006.3,4006.2,0.17456]
[1733596766551,0.17456,4006.2,4006.1,0.17456]
[1733596766755,3.38236,4006.3,4006.2,0.17456]
[1733596767354,3.2078,4006.3,4006.2,0.17456]
[1733596769560,3.33758192,4006.7,4006.2,3.2078]
[1733596769758,0.57634,4006.7,4006.6,0.89906589]
[1733596770161,0.57634,4006.7,4006.6,1.07360589]
[1733596770360,0.57634,4006.7,4006.6,0.89906589]
[1733596770968,0.4018,4006.7,4006.6,0.89906589]
[1733596771265,0.17453,4006.8,4006.6,0.89906589]
[1733596771563,0.391,4007.0,4006.6,0.89906589]
[1733596771767,0.56552,4007.0,4006.9,0.89906589]
[1733596772563,0.17452,4007.0,4006.9,1.07359589]
[1733596772765,0.17452,4007.2,4007.1,0.17452]
[1733596772963,0.17452,4007.2,4007.1,1.07358589]
[1733596773367,0.17452,4007.2,4007.1,1.46618589]
[1733596773865,0.17452,4007.2,4007.1,1.29166589]
[1733596774259,0.17452,4007.2,4006.6,0.4248]
[1733596774260,0.17452,4007.2,4006.8,0.89906589]
[1733596774476,0.17453,4006.9,4006.8,0.89906589]
[1733596775164,0.17453,4006.9,4006.7,0.17453]
[1733596775165,0.17454,4006.7,4006.6,0.89906589]
[1733596775570,4.08800407,4006.7,4006.6,0.89906589]
[1733596775772,4.89400407,4006.7,4006.6,0.89906589]
[1733596775969,0.17455,4006.5,4006.4,1.54006589]
[1733596776167,0.17455,4006.5,4006.4,0.89906589]
[1733596776568,3.10905803,4006.5,4006.4,1.47401589]
[1733596776770,2.93450803,4006.5,4006.4,1.47401589]
[1733596777071,2.93450803,4006.6,4006.5,0.17455]
[1733596779273,0.3925,4006.7,4006.4,1.29946589]
[1733596779580,2.93490799,4006.5,4006.4,1.47401589]
[1733596779775,4.08724498,4006.8,4006.5,0.17455]
[1733596779776,2.93490799,4006.6,4006.5,0.17455]
[1733596779972,3.91271498,4006.8,4006.6,0.17454]
[1733596780172,0.17454,4006.6,4006.5,1.07360589]
[1733596780373,4.49645498,4006.7,4006.5,0.89906589]
[1733596780575,4.49645498,4006.7,4006.6,0.17454]
[1733596780576,4.32191498,4006.7,4006.6,0.17454]
[1733596780776,4.49645498,4006.7,4006.6,0.17454]
[1733596780976,3.91271498,4006.7,4006.6,0.17454]
[1733596781175,2.93527291,4006.7,4006.6,0.3926]
[1733596781485,2.93527291,4006.7,4006.6,0.56714]
[1733596781685,0.17453,4006.8,4006.7,0.17453]
[1733596782285,0.17454,4006.7,4006.6,0.56714]
[1733596782477,0.17453,4006.8,4006.7,0.17453]
[1733596782874,0.17454,4006.6,4006.5,0.17454]
[1733596783082,3.2078,4007.0,4006.5,0.89906589]
[1733596783282,3.2078,4007.0,4006.4,1.0414]
[1733596783474,0.17453,4006.9,4006.7,0.17453]
[1733596783679,0.4092,4007.1,4006.4,1.0414]
[1733596783872,0.58372,4007.1,4007.0,0.89906589]
[1733596784776,0.58372,4007.1,4007.0,1.07358589]
[1733596785881,0.58372,4007.1,4007.0,1.71458589]
[1733596786079,0.4248,4007.2,4007.1,0.17452]
[1733596786382,0.59931,4007.2,4007.1,0.17452]
[1733596786583,0.59931,4007.2,4007.1,0.58402]
[1733596787178,0.4248,4007.2,4007.1,0.58402]
[1733596788282,0.17451,4007.4,4007.3,0.17451]
[1733596788485,0.17451,4007.4,4007.3,1.07357589]
[1733596788779,0.17451,4007.4,4007.3,0.89906589]
[1733596789079,6.55467291,4007.6,4007.3,0.89906589]
[1733596789480,0.17451,4007.4,4007.3,1.07357589]
[1733596789988,5.06859883,4007.4,4007.3,1.07357589]
[1733596790383,4.89408883,4007.4,4007.3,1.07357589]
[1733596790681,0.17451,4007.4,4007.3,1.07357589]
[1733596791588,0.1745,4007.5,4007.4,0.1745]
[1733596792084,0.1745,4007.5,4007.3,0.89906589]
[1733596792288,0.1745,4007.5,4007.4,0.1745]
[1733596794284,3.6194,4007.6,4007.3,0.89906589]
[1733596794486,4.51846589,4007.6,4007.2,0.641]
[1733596794685,4.51846589,4007.6,4007.0,1.07358589]
[1733596794686,0.43626,4007.5,4007.0,1.07358589]
[1733596794894,10.40969719,4007.6,4007.0,1.54006589]
[1733596794895,5.06877421,4007.1,4007.0,1.54006589]
[1733596795194,5.06877421,4007.1,4007.0,1.71458589]
[1733596795394,5.06877421,4007.1,4007.0,1.54006589]
[1733596795589,0.17452,4007.1,4007.0,1.54006589]
[1733596795991,5.46637421,4007.1,4007.0,1.54006589]
[1733596796191,0.57212,4007.1,4007.0,1.54006589]
[1733596796592,5.46637421,4007.1,4007.0,1.54006589]
[1733596796800,0.57212,4007.1,4007.0,1.54006589]
[1733596805303,0.57212,4007.1,4007.0,1.71458589]
[1733596805905,0.17452,4007.1,4007.0,1.71458589]
[1733596806207,0.17452,4007.1,4007.0,0.81552]
[1733596806610,0.17452,4007.1,4007.0,0.641]
[1733596807404,0.17452,4007.1,4007.0,0.81552]
[1733596808604,0.17452,4007.1,4007.0,0.641]
[1733596810505,0.17452,4007.1,4007.0,0.81552]
[1733596811007,0.17452,4007.1,4007.0,0.641]
[1733596812007,5.06877421,4007.1,4007.0,0.641]
[1733596812503,5.06877421,4007.1,4007.0,0.81552]
[1733596812700,4.89425421,4007.1,4007.0,0.81552]
[1733596812901,5.06877421,4007.1,4007.0,0.81552]
[1733596813195,0.17452,4007.1,4007.0,0.81552]
[1733596814205,5.06877421,4007.1,4007.0,0.81552]
[1733596815203,0.17452,4007.1,4007.0,0.81552]
[1733596815906,0.17452,4007.1,4007.0,0.641]
[1733596817606,0.4148,4007.4,4007.0,0.641]
[1733596817607,0.17452,4007.2,4007.0,0.641]
[1733596817804,5.07937352,4007.1,4007.0,0.81552]
[1733596818305,5.07937352,4007.1,4007.0,0.641]
[1733596818512,0.17452,4007.1,4007.0,0.641]
[1733596818902,5.07947708,4007.1,4007.0,0.641]
[1733596819099,0.17452,4007.1,4007.0,0.641]
[1733596819610,0.17452,4007.1,4007.0,0.81552]
[1733596820312,3.11748903,4007.1,4007.0,1.71458589]
[1733596820508,0.17452,4007.1,4007.0,1.71458589]
[1733596820808,0.17452,4007.1,4007.0,0.81552]
[1733596821305,0.17452,4007.1,4007.0,0.641]
[1733596821508,0.17452,4007.1,4007.0,0.81552]
[1733596822012,0.17452,4007.1,4007.0,0.641]
[1733596822709,0.17452,4007.1,4007.0,0.81552]
[1733596823306,3.11748903,4007.1,4007.0,0.81552]
[1733596823713,0.17452,4007.1,4007.0,0.81552]
[1733596824308,3.11748903,4007.1,4007.0,0.81552]
[1733596826213,3.11748903,4007.1,4007.0,4.72042594]
[1733596826414,3.11748903,4007.1,4007.0,0.81552]
[1733596827118,0.17452,4007.1,4007.0,0.81552]
[1733596827722,4.90495708,4007.2,4007.0,0.641]
[1733596827913,5.07947708,4007.2,4007.1,1.07358589]
[1733596828715,5.07947708,4007.2,4007.1,0.89906589]
[1733596830217,0.17452,4007.2,4007.1,0.89906589]
[1733596830919,0.17452,4007.2,4007.1,1.07358589]
[1733596832518,0.17452,4007.2,4007.1,0.89906589]
[1733596832710,0.17452,4007.2,4007.1,1.07358589]
[1733596834020,0.17452,4007.2,4007.1,4.97849183]
[1733596834917,0.17452,4007.2,4007.1,4.80397183]